fUST/lending_fUST_20251028
["ID","MTS","AMOUNT","RATE_DAILY","PERIOD"]
[392518970,1761600643204,-500.0,0.00017389,2]
[392518971,1761600643213,-500.0,0.00017389,2]
[392518972,1761600643222,-500.0,0.00017389,2]
[392518973,1761600643232,-500.0,0.00017389,2]
[392518974,1761600643242,-566.0600248,0.00017389,2]
[392518975,1761600643253,-500.0,0.00017389,2]
[392518976,1761600643263,-500.0,0.00017389,2]
[392518978,1761600643271,-500.0,0.00017389,2]
[392518980,1761600643280,-500.0,0.00017389,2]
[392518982,1761600643290,-497.12324176,0.00017389,2]
[392518983,1761600643299,-500.0,0.00017389,2]
[392518984,1761600643308,-163.34815154,0.00017389,2]
[392518992,1761601426154,532.147874,0.00013699,2]
[392519431,1761601846322,-159.282498,0.00016389,2]
[392519433,1761601846331,-955.35256378,0.00016464,2]
[392519435,1761601846341,-1039.0,0.00016989,2]
[392519437,1761601846350,-300.0,0.00016989,2]
[392519439,1761601846359,-15004.57592633,0.0001699,2]
[392519446,1761601846434,-1257.75,0.0001699,2]
[392519456,1761602575139,224.861207,0.00030137,120]
[392519457,1761602606173,156.0,8.3e-07,2]
[392519458,1761602607174,156.0,8.3e-07,2]
[392519459,1761602608270,156.0,8.3e-07,2]
[392519460,1761602609391,156.0,8.3e-07,2]
[392519461,1761602610421,156.0,8.3e-07,2]
[392519462,1761602611455,156.0,8.3e-07,2]
[392519463,1761602795099,-412.0,0.00015569,2]
[392519464,1761602795119,-160.0,0.00016119,2]
[392519465,1761602795140,-300.0,0.00016137,2]
[392519466,1761602795159,-300.0,0.00016138,2]
[392519467,1761602795179,-300.0,0.00016138,2]
[392519468,1761602795199,-300.0,0.00016138,2]
[392519469,1761602795220,-1200.0,0.00016138,2]
[392519470,1761602795240,-956.63132503,0.00016138,2]
[392519471,1761602795259,-10117.55225997,0.00016139,2]
[392519473,1761602973519,310.426,0.00030136,120]
[392519534,1761603032519,-300.0,0.00016138,2]
[392519536,1761603032529,-500.0,0.00016138,2]
[392519537,1761603032538,-582.55683213,0.00016138,2]
[392519545,1761603032632,-354.9418664,0.00016138,2]
[392519547,1761603032642,-13113.76221753,0.00016139,2]
[392519549,1761603032651,-181.58311835,0.00016305,2]
[392519551,1761603032661,-300.0,0.00016461,2]
[392519552,1761603032675,-300.0,0.00016461,2]
[392519554,1761603032684,-300.0,0.00016461,2]
[392519556,1761603032693,-300.0,0.00016461,2]
[392519558,1761603032702,-300.0,0.00016461,2]
[392519560,1761603032713,-300.0,0.00016461,2]
[392519562,1761603032723,-300.0,0.00016461,2]
[392519564,1761603032732,-300.0,0.00016461,2]
[392519566,1761603032742,-300.0,0.00016461,2]
[392519568,1761603032751,-300.0,0.00016461,2]
[392519570,1761603032760,-300.0,0.00016461,2]
[392519571,1761603032769,-300.0,0.00016461,2]
[392519573,1761603032778,-300.0,0.00016461,2]
[392519575,1761603032788,-300.0,0.00016461,2]
[392519577,1761603032796,-300.0,0.00016461,2]
[392519579,1761603032805,-151.0,0.00016461,2]
[392519581,1761603032815,-152.013966,0.00016461,2]
[392519583,1761603032823,-166.48212894,0.00016886,2]
[392519585,1761603032832,-183.15564955,0.00016887,2]
[392519586,1761603032841,-449.86410238,0.00016986,2]
[392519588,1761603032850,-500.0,0.00016986,2]
[392519590,1761603032860,-500.0,0.00016986,2]
[392519592,1761603032869,-500.0,0.00016986,2]
[392519594,1761603032877,-500.0,0.00016986,2]
[392519596,1761603032887,-500.0,0.00016986,2]
[392519598,1761603032896,-500.0,0.00016986,2]
[392519600,1761603032905,-500.0,0.00016986,2]
[392519602,1761603032915,-500.0,0.00016986,2]
[392519604,1761603032924,-603.8558698,0.00016986,2]
[392519606,1761603032932,-500.0,0.00016986,2]
[392519607,1761603032942,-500.0,0.00016986,2]
[392519609,1761603032951,-500.0,0.00016986,2]
[392519611,1761603032960,-500.0,0.00016986,2]
[392519613,1761603032969,-500.0,0.00016986,2]
[392519615,1761603032981,-500.0,0.00016986,2]
[392519617,1761603032991,-500.0,0.00016986,2]
[392519619,1761603033000,-500.0,0.00016986,2]
[392519621,1761603033009,-500.0,0.00016986,2]
[392519623,1761603033022,-500.0,0.00016986,2]
[392519626,1761603033039,-500.0,0.00016986,2]
[392519628,1761603033055,-500.0,0.00016986,2]
[392519630,1761603033068,-500.0,0.00016986,2]
[392519633,1761603033084,-500.0,0.00016986,2]
[392519636,1761603033099,-500.0,0.00016986,2]
[392519638,1761603033114,-500.0,0.00016986,2]
[392519640,1761603033129,-500.0,0.00016986,2]
[392519643,1761603033145,-321.31503009,0.00016986,2]
[392519645,1761603033159,-236.54432975,0.00016986,2]
[392519648,1761603033173,-500.0,0.00016986,2]
[392519650,1761603033186,-500.0,0.00016986,2]
[392519652,1761603033202,-500.0,0.00016986,2]
[392519655,1761603033216,-500.0,0.00016986,2]
[392519657,1761603033228,-500.0,0.00016986,2]
[392519659,1761603033241,-500.0,0.00016986,2]
[392519661,1761603033254,-500.0,0.00016986,2]
[392519664,1761603033268,-500.0,0.00016986,2]
[392519666,1761603033284,-500.0,0.00016986,2]
[392519669,1761603033301,-500.0,0.00016986,2]
[392519671,1761603033315,-500.0,0.00016986,2]
[392519673,1761603033327,-500.0,0.00016986,2]
[392519676,1761603033339,-500.0,0.00016986,2]
[392519678,1761603033352,-403.45028855,0.00016986,2]
[392519680,1761603033368,-500.0,0.00016986,2]
[392519683,1761603033382,-506.74272984,0.00016986,2]
[392519685,1761603033398,-500.0,0.00016986,2]
[392519688,1761603033416,-500.0,0.00016986,2]
[392519690,1761603033429,-500.0,0.00016986,2]
[392519692,1761603033442,-500.0,0.00016986,2]
[392519695,1761603033454,-500.0,0.00016986,2]
[392519697,1761603033469,-500.0,0.00016986,2]
[392519701,1761603033496,-500.0,0.00016986,2]
[392519703,1761603033511,-500.0,0.00016986,2]
[392519706,1761603033525,-500.0,0.00016986,2]
[392519708,1761603033539,-500.0,0.00016986,2]
[392519710,1761603033552,-500.0,0.00016986,2]
[392519713,1761603033567,-500.0,0.00016986,2]
[392519714,1761603033580,-200.0,0.00016988,2]
[392519715,1761603033594,-151.0,0.00016988,2]
[392519716,1761603033607,-188.903642,0.00016988,2]
[392519717,1761603033621,-500.0,0.00016989,2]
[392519718,1761603033635,-500.0,0.00016989,2]
[392519719,1761603033647,-213.60119837,0.00016989,2]
[392519720,1761603033661,-701.0,0.00016989,2]
[392519721,1761603033676,-500.0,0.00016989,2]
[392519722,1761603033689,-151.0,0.00016989,2]
[392519723,1761603033701,-500.0,0.00016989,2]
[392519724,1761603033715,-500.0,0.00016989,2]
[392519725,1761603033728,-500.0,0.00016989,2]
[392519726,1761603033741,-500.0,0.00016989,2]
[392519727,1761603033754,-500.0,0.00016989,2]
[392519728,1761603033766,-207.745452,0.00016989,2]
[392519729,1761603033779,-500.0,0.00016989,2]
[392519730,1761603033792,-500.0,0.00016989,2]
[392519731,1761603033804,-500.0,0.00016989,2]
[392519732,1761603033817,-500.0,0.00016989,2]
[392519733,1761603033829,-500.0,0.00016989,2]
[392519734,1761603033841,-500.0,0.00016989,2]
[392519735,1761603033853,-151.0,0.00016989,2]
[392519736,1761603033866,-151.0,0.00016989,2]
[392519738,1761603033880,-500.0,0.00016989,2]
[392519740,1761603033892,-500.0,0.00016989,2]
[392519741,1761603033905,-500.0,0.00016989,2]
[392519743,1761603033917,-500.0,0.00016989,2]
[392519746,1761603033928,-500.0,0.00016989,2]
[392519748,1761603033941,-12175.10004882,0.0001699,2]
[392519750,1761603033956,-500.0,0.00017044,2]
[392519752,1761603033968,-500.0,0.00017044,2]
[392519755,1761603033980,-701.0,0.00017044,2]
[392519757,1761603033992,-500.0,0.00017044,2]
[392519759,1761603034004,-151.0,0.00017044,2]
[392519762,1761603034017,-500.0,0.00017044,2]
[392519764,1761603034028,-500.0,0.00017044,2]
[392519766,1761603034040,-500.0,0.00017044,2]
[392519769,1761603034052,-500.0,0.00017044,2]
[392519771,1761603034064,-500.0,0.00017044,2]
[392519773,1761603034076,-500.0,0.00017044,2]
[392519775,1761603034088,-500.0,0.00017044,2]
[392519778,1761603034100,-500.0,0.00017044,2]
[392519780,1761603034111,-500.0,0.00017044,2]
[392519782,1761603034125,-500.0,0.00017044,2]
[392519785,1761603034137,-500.0,0.00017044,2]
[392519787,1761603034148,-246.16441671,0.00017044,2]
[392519789,1761603034161,-500.0,0.00017044,2]
[392519792,1761603034173,-500.0,0.00017044,2]
[392519794,1761603034185,-500.0,0.00017044,2]
[392519796,1761603034197,-183.15564954,0.0001709,2]
[392519798,1761603034210,-500.0,0.00017099,2]
[392519801,1761603034222,-174.32531695,0.00017099,2]
[392519803,1761603034233,-701.0,0.00017099,2]
[392519805,1761603034245,-500.0,0.00017099,2]
[392519807,1761603034256,-151.0,0.00017099,2]
[392519810,1761603034268,-500.0,0.00017099,2]
[392519812,1761603034280,-500.0,0.00017099,2]
[392519814,1761603034292,-500.0,0.00017099,2]
[392519817,1761603034304,-500.0,0.00017099,2]
[392519819,1761603034316,-500.0,0.00017099,2]
[392519821,1761603034329,-500.0,0.00017099,2]
[392519824,1761603034342,-500.0,0.00017099,2]
[392519826,1761603034354,-500.0,0.00017099,2]
[392519828,1761603034366,-484.91431439,0.00017099,2]
[392519831,1761603034380,-338.52738612,0.00017099,2]
[392519833,1761603034391,-500.0,0.00017099,2]
[392519835,1761603034403,-500.0,0.00017099,2]
[392519837,1761603034415,-500.0,0.00017099,2]
[392519840,1761603034427,-500.0,0.00017099,2]
[392519842,1761603034438,-150.0,0.000171,2]
[392519844,1761603034450,-150.0,0.000171,2]
[392519847,1761603034462,-150.0,0.000171,2]
[392519848,1761603034473,-150.0,0.000171,2]
[392519849,1761603034486,-150.0,0.000171,2]
[392519850,1761603034497,-150.0,0.000171,2]
[392519851,1761603034510,-500.0,0.00017153,2]
[392519852,1761603034522,-701.0,0.00017153,2]
[392519853,1761603034535,-500.0,0.00017153,2]
[392519854,1761603034547,-280.32136647,0.00017153,2]
[392519855,1761603034559,-500.0,0.00017153,2]
[392519856,1761603034572,-371.94225671,0.00017153,2]
[392519857,1761603034584,-500.0,0.00017153,2]
[392519858,1761603034596,-476.0,0.00017153,2]
[392519859,1761603034609,-500.0,0.00017153,2]
[392519860,1761603034623,-500.68163581,0.00017153,2]
[392519861,1761603034635,-500.0,0.00017153,2]
[392519863,1761603034648,-500.0,0.00017153,2]
[392519864,1761603034661,-612.83761363,0.00017153,2]
[392519865,1761603034676,-500.0,0.00017153,2]
[392519866,1761603034688,-500.0,0.00017153,2]
[392519867,1761603034701,-500.0,0.00017167,2]
[392519868,1761603034712,-3571.4967485,0.00017168,2]
[392519869,1761603034724,-151.0,0.00017168,2]
[392519870,1761603034736,-213.96859442,0.0001718,2]
[392519871,1761603034748,-314.54,0.0001718,3]
[392519872,1761603034760,-455.27,0.00017183,2]
[392519873,1761603034772,-500.0,0.00017188,2]
[392519874,1761603034783,-500.0,0.00017188,2]
[392519875,1761603034796,-151.0,0.0001719,2]
[392519876,1761603034808,-94480.9445525,0.0001719,2]
[392519886,1761603038261,-539.89848668,0.00016988,2]
[392519887,1761603038271,-1963.08726808,0.0001719,2]
[392519888,1761603038283,-2343.90687338,0.0001719,2]
[392519889,1761603038295,-573.73830145,0.0001719,2]
[392520116,1761603043534,-1199.99,0.00017018,2]
[392520118,1761603043543,-360.697065,0.0001719,2]
[392520121,1761603043555,-353.83491488,0.0001719,2]
[392520418,1761604069385,306.6492811,0.00030136,120]
[392520423,1761604082617,166.66666667,0.0001,2]
[392520477,1761604232694,-159.282499,0.00015823,2]
[392520478,1761604232705,-159.282499,0.00015983,2]
[392520479,1761604232714,-145.09876998,0.00016028,2]
[392520480,1761604232758,-773.64995458,0.00016028,2]
[392520481,1761604232768,-300.0,0.00016981,2]
[392520482,1761604232777,-300.0,0.00016981,2]
[392520483,1761604232787,-300.0,0.00016981,2]
[392520484,1761604232796,-300.0,0.00016981,2]
[392520485,1761604232805,-300.0,0.00016981,2]
[392520486,1761604232815,-1200.0,0.00016981,2]
[392520487,1761604232824,-500.0,0.00016981,2]
[392520488,1761604232834,-500.0,0.00016981,2]
[392520489,1761604232844,-500.0,0.00016981,2]
[392520490,1761604232852,-535.70166998,0.00016981,2]
[392520491,1761604232862,-278.52696998,0.00016981,2]
[392520492,1761604232871,-248.50492553,0.00016981,2]
[392520493,1761604232881,-500.0,0.00016981,2]
[392520494,1761604232890,-500.0,0.00016981,2]
[392520495,1761604232900,-378.16114317,0.00016981,2]
[392520496,1761604232909,-181.14767334,0.00016982,2]
[392520497,1761604232918,-7119.71247807,0.00016982,2]
[392520498,1761604232930,-42880.28752193,0.00016982,2]
[392520499,1761604232939,-500.0,0.00016984,2]
[392520500,1761604232948,-500.0,0.00016984,2]
[392520501,1761604232957,-227.2505305,0.00016986,2]
[392520502,1761604232967,-556.20993303,0.00016986,2]
[392520503,1761604232976,-500.0,0.00016986,2]
[392520504,1761604232985,-500.0,0.00016986,2]
[392520505,1761604232995,-500.0,0.00016986,2]
[392520506,1761604233005,-500.0,0.00016986,2]
[392520507,1761604233014,-508.11423258,0.00016986,2]
[392520508,1761604233023,-500.0,0.00016986,2]
[392520509,1761604233033,-500.0,0.00016986,2]
[392520510,1761604233042,-500.0,0.00016986,2]
[392520511,1761604233052,-500.0,0.00016988,2]
[392520512,1761604233062,-500.0,0.00016989,2]
[392520513,1761604233072,-500.0,0.00016989,2]
[392520514,1761604233081,-500.0,0.00016989,2]
[392520515,1761604233091,-77433.76158028,0.0001699,2]
[392520516,1761604233100,-213.96859442,0.0001708,2]
[392520517,1761604233119,-5741.17256252,0.0001709,2]
[392520518,1761604233132,-289.11991208,0.0001709,2]
[392520519,1761604233155,-312.25048316,0.0001709,2]
[392520560,1761604246603,-215.39849204,0.00016713,2]
[392520561,1761604246612,-215.39849204,0.00016882,2]
[392520562,1761604246622,-500.0,0.00016986,2]
[392520563,1761604246635,-365.77816878,0.0001709,2]
[392520580,1761604307856,505.54048,0.00013699,2]
[392520847,1761604404960,500.0,0.00030137,120]
[392520852,1761604427469,159.11782,0.00030137,120]
[392520859,1761604456181,825.30900896,0.0001825,9]
[392520888,1761604591477,2000.0,0.00030137,120]
[392520926,1761604642003,8859.80285333,0.0001476,2]
[392520927,1761604642028,1140.19714667,0.0001476,2]
[392520936,1761604655903,8859.81285333,0.0001476,2]
[392520937,1761604656152,1140.18714667,0.0001476,2]
[392520954,1761604666814,2343.98592883,0.0001825,9]
[392520955,1761604668025,8859.82285333,0.0001476,2]
[392520956,1761604668046,1140.17714667,0.0001476,2]
[392520963,1761604674642,5000.0,0.0001825,9]
[392520969,1761604687068,8859.83285333,0.0001476,2]
[392520970,1761604697257,652.16714667,0.00014612,2]
[392520976,1761604704449,-262.6444581,0.0001476,2]
[392520978,1761604705829,-389.52268857,0.0001476,2]
[392520979,1761604705858,-614.30439062,0.00016725,2]
[392520980,1761604705884,-150.0,0.00016799,7]
[392520981,1761604705913,-900.37375007,0.00016894,2]
[392520982,1761604705940,-412.0,0.00016989,2]
[392520983,1761604705968,-403.5761775,0.0001707,2]
[392520984,1761604705997,-300.0,0.00017088,2]
[392520985,1761604706026,-389.34695312,0.00017089,2]
[392520986,1761604706054,-500.0,0.00017089,2]
[392520987,1761604706082,-500.0,0.00017089,2]
[392520988,1761604706110,-381.76208024,0.00017089,2]
[392520989,1761604706407,-118.23791976,0.00017089,2]
[392520990,1761604706436,-155.67996281,0.00017089,2]
[392520991,1761604706465,-500.0,0.00017089,2]
[392520992,1761604706493,-500.0,0.00017089,2]
[392520993,1761604706522,-500.0,0.00017089,2]
[392520994,1761604706551,-180.7148283,0.0001709,2]
[392520995,1761604707300,-3505.87215793,0.0001709,2]
[392520996,1761604707316,-10000.01,0.0001709,2]
[392520997,1761604707377,-10000.01,0.0001709,2]
[392520998,1761604707417,-10000.01,0.0001709,2]
[392520999,1761604707515,-10000.01,0.0001709,2]
[392521000,1761604707568,-10000.01,0.0001709,2]
[392521001,1761604707706,-10000.01,0.0001709,2]
[392521002,1761604707848,-10000.01,0.0001709,2]
[392521003,1761604708019,-10000.01,0.0001709,2]
[392521004,1761604708177,-10000.01,0.0001709,2]
[392521006,1761604711681,-10000.01,0.0001709,2]
[392521010,1761604718409,-10000.01,0.0001709,2]
[392521011,1761604718581,-10000.01,0.0001709,2]
[392521012,1761604718732,-10000.01,0.0001709,2]
[392521013,1761604718863,-10000.01,0.0001709,2]
[392521014,1761604719000,-10000.01,0.0001709,2]
[392521015,1761604719148,-10000.01,0.0001709,2]
[392521016,1761604719263,-10000.01,0.0001709,2]
[392521017,1761604719389,-10000.01,0.0001709,2]
[392521019,1761604719512,-10000.01,0.0001709,2]
[392521020,1761604719640,-10000.01,0.0001709,2]
[392521021,1761604719763,-10000.01,0.0001709,2]
[392521022,1761604719894,-10000.01,0.00016919,2]
[392521023,1761604720012,-3147.84285333,0.00016919,2]
[392521024,1761604720066,-3704.32429334,0.0001709,2]
[392521043,1761604803184,9319.0,0.00014495,2]
[392521181,1761605246070,168.98626,7.604e-05,2]
[392521182,1761605246267,168.98626,0.00010138,2]
[392521183,1761605246479,168.98626,0.00012673,2]
[392521199,1761605320031,168.645905,0.00030137,120]
[392521200,1761605322052,-168.98626,0.00014755,2]
[392521203,1761605338789,168.98626,0.00014755,2]
[392521208,1761605360608,168.98626,0.00014755,2]
[392521213,1761605382993,168.98626,0.00014755,2]
[392521217,1761605404849,168.98626,0.00014755,2]
[392521221,1761605426697,168.98626,0.00014755,2]
[392521244,1761605432065,-168.98626,0.00014904,2]
[392521245,1761605432075,-168.98626,0.00015055,2]
[392521246,1761605432084,-168.98626,0.00015207,2]
[392521247,1761605432094,-1200.0,0.00015463,2]
[392521248,1761605432103,-473.94838274,0.00015464,2]
[392521255,1761605437644,-3253.96340367,0.00015309,2]
[392521256,1761605437653,-48.45447375,0.00015464,2]
[392521257,1761605437663,-2087.52181455,0.00015464,2]
[392521258,1761605437673,-223.77644423,0.00015464,2]
[392521259,1761605437683,-894.21067114,0.00015464,2]
[392521260,1761605437692,-169.43549047,0.0001567,2]
[392521261,1761605437701,-1200.0,0.00015849,2]
[392521262,1761605437712,-882.36627507,0.0001585,2]
[392521263,1761605437722,-300.0,0.00016275,2]
[392521264,1761605437732,-300.0,0.00016275,2]
[392521265,1761605437741,-300.0,0.00016275,2]
[392521266,1761605437750,-300.0,0.00016275,2]
[392521267,1761605437761,-300.0,0.00016275,2]
[392521268,1761605437772,-500.0,0.00016276,2]
[392521269,1761605437780,-202.91572652,0.00016276,2]
[392521270,1761605437799,-297.08427348,0.00016276,2]
[392521271,1761605437808,-439.03663574,0.00016276,2]
[392521272,1761605437827,-85.23230935,0.00016276,2]
[392521273,1761605437836,-500.0,0.00016276,2]
[392521274,1761605437845,-500.0,0.00016276,2]
[392521275,1761605437855,-500.0,0.00016276,2]
[392521276,1761605437863,-500.0,0.00016276,2]
[392521277,1761605437872,-500.0,0.00016276,2]
[392521278,1761605437881,-500.0,0.00016276,2]
[392521279,1761605437891,-500.0,0.00016276,2]
[392521280,1761605437900,-500.0,0.00016276,2]
[392521281,1761605437909,-500.0,0.00016276,2]
[392521282,1761605437919,-500.0,0.00016276,2]
[392521283,1761605437927,-500.0,0.00016276,2]
[392521284,1761605437936,-500.0,0.00016276,2]
[392521285,1761605437945,-500.0,0.00016276,2]
[392521286,1761605437955,-359.69114646,0.00016276,2]
[392521287,1761605437963,-500.0,0.00016276,2]
[392521288,1761605437972,-500.0,0.00016276,2]
[392521289,1761605437982,-500.0,0.00016276,2]
[392521290,1761605437990,-500.0,0.00016276,2]
[392521291,1761605437999,-500.0,0.00016276,2]
[392521292,1761605438008,-500.0,0.00016276,2]
[392521293,1761605438016,-367.97672436,0.00016276,2]
[392521294,1761605438025,-199.93737334,0.00016276,2]
[392521295,1761605438034,-500.0,0.00016276,2]
[392521296,1761605438043,-500.0,0.00016276,2]
[392521297,1761605438052,-500.0,0.00016276,2]
[392521298,1761605438062,-500.0,0.00016276,2]
[392521299,1761605438071,-500.0,0.00016276,2]
[392521300,1761605438080,-500.0,0.00016276,2]
[392521301,1761605438089,-500.0,0.00016276,2]
[392521302,1761605438098,-500.0,0.00016276,2]
[392521303,1761605438107,-500.0,0.00016276,2]
[392521304,1761605438116,-500.0,0.00016276,2]
[392521305,1761605438126,-500.0,0.00016276,2]
[392521306,1761605438136,-500.0,0.00016276,2]
[392521307,1761605438146,-500.0,0.00016276,2]
[392521308,1761605438155,-500.0,0.00016276,2]
[392521309,1761605438165,-500.0,0.00016276,2]
[392521310,1761605438174,-500.0,0.00016276,2]
[392521311,1761605438183,-500.0,0.00016276,2]
[392521312,1761605438193,-500.0,0.00016276,2]
[392521313,1761605438203,-463.1245604,0.00016276,2]
[392521314,1761605438214,-500.0,0.00016276,2]
[392521315,1761605438223,-500.0,0.00016276,2]
[392521316,1761605438233,-500.0,0.00016276,2]
[392521317,1761605438242,-500.0,0.00016276,2]
[392521318,1761605438252,-500.0,0.00016276,2]
[392521319,1761605438261,-500.0,0.00016276,2]
[392521320,1761605438270,-500.0,0.00016276,2]
[392521321,1761605438280,-500.0,0.00016276,2]
[392521322,1761605438290,-500.0,0.00016276,2]
[392521323,1761605438299,-500.0,0.00016276,2]
[392521324,1761605438309,-500.0,0.00016276,2]
[392521325,1761605438319,-500.0,0.00016276,2]
[392521326,1761605438327,-500.0,0.00016276,2]
[392521327,1761605438336,-500.0,0.00016276,2]
[392521328,1761605438345,-500.0,0.00016276,2]
[392521329,1761605438353,-500.0,0.00016276,2]
[392521330,1761605438362,-500.0,0.00016276,2]
[392521331,1761605438370,-500.0,0.00016276,2]
[392521332,1761605438378,-500.0,0.00016276,2]
[392521333,1761605438387,-500.0,0.00016276,2]
[392521334,1761605438395,-500.0,0.00016276,2]
[392521335,1761605438404,-504.15140171,0.00016276,2]
[392521336,1761605438413,-500.0,0.00016276,2]
[392521337,1761605438422,-500.0,0.00016276,2]
[392521338,1761605438430,-500.0,0.00016276,2]
[392521339,1761605438439,-500.0,0.00016276,2]
[392521340,1761605438447,-500.0,0.00016276,2]
[392521341,1761605438457,-460.08309373,0.00016276,2]
[392521342,1761605438465,-500.0,0.00016276,2]
[392521343,1761605438473,-500.0,0.00016276,2]
[392521344,1761605438482,-500.0,0.00016276,2]
[392521345,1761605438491,-304.26262778,0.00016276,2]
[392521346,1761605438500,-500.0,0.00016277,2]
[392521347,1761605438510,-5438.97640064,0.00016277,2]
[392521352,1761605440014,-810.69,0.00016277,2]
[392521371,1761605442999,-12091.26749795,0.00016277,2]
[392521372,1761605443023,-840.75429562,0.00016277,2]
[392521393,1761605445917,-1868.4224599,0.00016114,2]
[392521394,1761605445927,-500.0,0.00016276,2]
[392521395,1761605445936,-9472.32754032,0.00016277,2]
[392521396,1761605446020,-21345.98426547,0.00016277,2]
[392521397,1761605446029,-899.47138405,0.00016277,2]
[392521398,1761605446039,-167.78993814,0.00016277,2]
[392521399,1761605446048,-500.0,0.00016551,2]
[392521400,1761605446057,-289.74467122,0.00016916,2]
[392521403,1761605463298,-113.83150628,0.00016916,2]
[392521404,1761605463327,-275.53923729,0.00016917,2]
[392521405,1761605463356,-571.39438406,0.00016918,2]
[392521406,1761605463387,-150.0,0.00016989,2]
[392521407,1761605463417,-300.0,0.00016989,2]
[392521408,1761605463748,-6507.59966474,0.0001699,2]
[392521409,1761605463867,-10000.01,0.0001699,2]
[392521410,1761605463991,-10000.01,0.0001699,2]
[392521411,1761605464103,-10000.01,0.0001699,2]
[392521412,1761605464896,-10000.01,0.0001699,2]
[392521413,1761605465031,-10000.01,0.0001699,2]
[392521414,1761605465190,-10000.01,0.0001699,2]
[392521415,1761605465366,-10000.01,0.0001699,2]
[392521416,1761605465517,-10000.01,0.0001699,2]
[392521417,1761605465584,-10000.01,0.0001699,2]
[392521418,1761605465879,-10000.01,0.0001699,2]
[392521419,1761605466021,-10000.01,0.0001699,2]
[392521420,1761605466163,-10000.01,0.0001699,2]
[392521421,1761605466276,-10000.01,0.0001699,2]
[392521422,1761605469097,-412.0,0.00016989,2]
[392521423,1761605469157,-9176.01,0.0001699,2]
[392521424,1761605469219,-10000.01,0.0001699,2]
[392521425,1761605469337,-10000.01,0.0001699,2]
[392521426,1761605469478,-10000.01,0.0001699,2]
[392521435,1761605614100,-500.0,0.00016113,2]
[392521436,1761605614131,-974.7229943,0.00016807,2]
[392521437,1761605614159,-1200.0,0.00016819,2]
[392521438,1761605614191,-300.0,0.00016819,2]
[392521439,1761605614633,-4050.5640114,0.0001682,2]
[392521440,1761605614831,-10000.01,0.0001682,2]
[392521441,1761605614874,-9395.23709202,0.0001682,2]
[392521442,1761605614884,-167.38184225,0.0001682,2]
[392521443,1761605614893,-300.0,0.000169,2]
[392521444,1761605614903,-137.39106573,0.000169,2]
[392521445,1761605615008,-162.60893427,0.000169,2]
[392521446,1761605615037,-300.0,0.000169,2]
[392521447,1761605615065,-300.0,0.000169,2]
[392521448,1761605615094,-300.0,0.000169,2]
[392521449,1761605615122,-403.5761775,0.00016909,2]
[392521450,1761605615191,-8533.82488823,0.0001698,2]
[392521451,1761605615211,-10000.01,0.0001698,2]
[392521452,1761605615249,-162.60893427,0.0001698,2]
[392521453,1761605615267,-300.0,0.0001698,2]
[392521454,1761605615288,-300.0,0.0001698,2]
[392521455,1761605615310,-300.0,0.0001698,2]
[392521456,1761605615338,-403.5761775,0.0001698,2]
[392521457,1761605615351,-7067.63977646,0.0001698,2]
[392521458,1761605615382,-10000.01,0.0001698,2]